{"text_format":"1","workbook":"xlsx","n_sheets":3,"sheets":["Заказ","Технический","Прайс"],"not_rendered":{"charts":0,"images":0,"macros":1,"external_links":0,"defined_names":0,"comments":0,"pivot_tables":1},"unopened":[],"bounds":{"document_bytes":16777216,"sheet_cells":100000,"rows_first":2000,"rows_last":500,"rows_between":2000,"halvings":0,"cell_chars":16384,"cell_head_chars":4096},"cells_cut":0,"cells_raw":0,"read":"whole","date_system":"1900"}

{"sheet":"Заказ","index":0,"n_rows":26,"n_cols":5,"rows_kept":26,"cut":false,"hidden":false,"merged":[[0,1,0,4]]}
["Курс ¥",54]
["№","Наименование","Цена","Кол-во","Сумма "]
["417",{"$f":"IFERROR(VLOOKUP(Реестр_tb[[#This Row],[№]],IF({1,0},Base_tb[№],Base_tb[Name]),2,0),\" \")","v":"шея свиные 2.5кг"},{"$f":"IFERROR(VLOOKUP(Реестр_tb[[#This Row],[№]],IF({1,0},Base_tb[№],Base_tb[Price]),2,0),\" \")","v":2200},3,{"$f":"[Цена]*[Кол-во]","v":6600}]
["533",{"$f":"IFERROR(VLOOKUP(Реестр_tb[[#This Row],[№]],IF({1,0},Base_tb[№],Base_tb[Name]),2,0),\" \")","v":"термопот 5л 220v ZOJIRUSHI CDLCQ50H"},{"$f":"IFERROR(VLOOKUP(Реестр_tb[[#This Row],[№]],IF({1,0},Base_tb[№],Base_tb[Price]),2,0),\" \")","v":15000},1,{"$f":"[Цена]*[Кол-во]","v":15000}]
["511-B",{"$f":"IFERROR(VLOOKUP(Реестр_tb[[#This Row],[№]],IF({1,0},Base_tb[№],Base_tb[Name]),2,0),\" \")","v":"туалетная бумага с ароматом 8пачка ящик"},{"$f":"IFERROR(VLOOKUP(Реестр_tb[[#This Row],[№]],IF({1,0},Base_tb[№],Base_tb[Price]),2,0),\" \")","v":3200},1,{"$f":"[Цена]*[Кол-во]","v":3200}]
["550",{"$f":"IFERROR(VLOOKUP(Реестр_tb[[#This Row],[№]],IF({1,0},Base_tb[№],Base_tb[Name]),2,0),\" \")","v":"бумага кухонная"},{"$f":"IFERROR(VLOOKUP(Реестр_tb[[#This Row],[№]],IF({1,0},Base_tb[№],Base_tb[Price]),2,0),\" \")","v":300},10,{"$f":"[Цена]*[Кол-во]","v":3000}]
["518",{"$f":"IFERROR(VLOOKUP(Реестр_tb[[#This Row],[№]],IF({1,0},Base_tb[№],Base_tb[Name]),2,0),\" \")","v":"порошок стиральный 3.2кг"},{"$f":"IFERROR(VLOOKUP(Реестр_tb[[#This Row],[№]],IF({1,0},Base_tb[№],Base_tb[Price]),2,0),\" \")","v":1300},1,{"$f":"[Цена]*[Кол-во]","v":1300}]
["556",{"$f":"IFERROR(VLOOKUP(Реестр_tb[[#This Row],[№]],IF({1,0},Base_tb[№],Base_tb[Name]),2,0),\" \")","v":"ароматный смягчитель для белья белый"},{"$f":"IFERROR(VLOOKUP(Реестр_tb[[#This Row],[№]],IF({1,0},Base_tb[№],Base_tb[Price]),2,0),\" \")","v":400},2,{"$f":"[Цена]*[Кол-во]","v":800}]
["555",{"$f":"IFERROR(VLOOKUP(Реестр_tb[[#This Row],[№]],IF({1,0},Base_tb[№],Base_tb[Name]),2,0),\" \")","v":"ароматный смягчитель для белья красный"},{"$f":"IFERROR(VLOOKUP(Реестр_tb[[#This Row],[№]],IF({1,0},Base_tb[№],Base_tb[Price]),2,0),\" \")","v":400},2,{"$f":"[Цена]*[Кол-во]","v":800}]
["557",{"$f":"IFERROR(VLOOKUP(Реестр_tb[[#This Row],[№]],IF({1,0},Base_tb[№],Base_tb[Name]),2,0),\" \")","v":"ароматный смягчитель для белья розовый"},{"$f":"IFERROR(VLOOKUP(Реестр_tb[[#This Row],[№]],IF({1,0},Base_tb[№],Base_tb[Price]),2,0),\" \")","v":400},2,{"$f":"[Цена]*[Кол-во]","v":800}]
["551-P",{"$f":"IFERROR(VLOOKUP(Реестр_tb[[#This Row],[№]],IF({1,0},Base_tb[№],Base_tb[Name]),2,0),\" \")","v":"шампунь SHISEIDO TSUBAKI пакет"},{"$f":"IFERROR(VLOOKUP(Реестр_tb[[#This Row],[№]],IF({1,0},Base_tb[№],Base_tb[Price]),2,0),\" \")","v":800},3,{"$f":"[Цена]*[Кол-во]","v":2400}]
["552-P",{"$f":"IFERROR(VLOOKUP(Реестр_tb[[#This Row],[№]],IF({1,0},Base_tb[№],Base_tb[Name]),2,0),\" \")","v":"кондиционер SHISEIDO TSUBAKI пакет"},{"$f":"IFERROR(VLOOKUP(Реестр_tb[[#This Row],[№]],IF({1,0},Base_tb[№],Base_tb[Price]),2,0),\" \")","v":800},3,{"$f":"[Цена]*[Кол-во]","v":2400}]
["472",{"$f":"IFERROR(VLOOKUP(Реестр_tb[[#This Row],[№]],IF({1,0},Base_tb[№],Base_tb[Name]),2,0),\" \")","v":"яблоки зелёные 10кг ящик"},{"$f":"IFERROR(VLOOKUP(Реестр_tb[[#This Row],[№]],IF({1,0},Base_tb[№],Base_tb[Price]),2,0),\" \")","v":0},1,{"$f":"[Цена]*[Кол-во]","v":0}]
["605",{"$f":"IFERROR(VLOOKUP(Реестр_tb[[#This Row],[№]],IF({1,0},Base_tb[№],Base_tb[Name]),2,0),\" \")","v":"яйцо 10кг ящик"},{"$f":"IFERROR(VLOOKUP(Реестр_tb[[#This Row],[№]],IF({1,0},Base_tb[№],Base_tb[Price]),2,0),\" \")","v":3200},1,{"$f":"[Цена]*[Кол-во]","v":3200}]
["546",{"$f":"IFERROR(VLOOKUP(Реестр_tb[[#This Row],[№]],IF({1,0},Base_tb[№],Base_tb[Name]),2,0),\" \")","v":"зубная паста"},{"$f":"IFERROR(VLOOKUP(Реестр_tb[[#This Row],[№]],IF({1,0},Base_tb[№],Base_tb[Price]),2,0),\" \")","v":300},4,{"$f":"[Цена]*[Кол-во]","v":1200}]
["426",{"$f":"IFERROR(VLOOKUP(Реестр_tb[[#This Row],[№]],IF({1,0},Base_tb[№],Base_tb[Name]),2,0),\" \")","v":"баранина 2.5кг"},{"$f":"IFERROR(VLOOKUP(Реестр_tb[[#This Row],[№]],IF({1,0},Base_tb[№],Base_tb[Price]),2,0),\" \")","v":6000},1,{"$f":"[Цена]*[Кол-во]","v":6000}]
["272",{"$f":"IFERROR(VLOOKUP(Реестр_tb[[#This Row],[№]],IF({1,0},Base_tb[№],Base_tb[Name]),2,0),\" \")","v":"молотый кофе UCC GOLDSPECIAL 280г"},{"$f":"IFERROR(VLOOKUP(Реестр_tb[[#This Row],[№]],IF({1,0},Base_tb[№],Base_tb[Price]),2,0),\" \")","v":600},5,{"$f":"[Цена]*[Кол-во]","v":3000}]
["723",{"$f":"IFERROR(VLOOKUP(Реестр_tb[[#This Row],[№]],IF({1,0},Base_tb[№],Base_tb[Name]),2,0),\" \")","v":"соус терияки"},{"$f":"IFERROR(VLOOKUP(Реестр_tb[[#This Row],[№]],IF({1,0},Base_tb[№],Base_tb[Price]),2,0),\" \")","v":300},1,{"$f":"[Цена]*[Кол-во]","v":300}]
["470",{"$f":"IFERROR(VLOOKUP(Реестр_tb[[#This Row],[№]],IF({1,0},Base_tb[№],Base_tb[Name]),2,0),\" \")","v":"мандарины 5кг ящик"},{"$f":"IFERROR(VLOOKUP(Реестр_tb[[#This Row],[№]],IF({1,0},Base_tb[№],Base_tb[Price]),2,0),\" \")","v":0},1,{"$f":"[Цена]*[Кол-во]","v":0}]
["219",{"$f":"IFERROR(VLOOKUP(Реестр_tb[[#This Row],[№]],IF({1,0},Base_tb[№],Base_tb[Name]),2,0),\" \")","v":"конфеты шоколадные KITKAT"},{"$f":"IFERROR(VLOOKUP(Реестр_tb[[#This Row],[№]],IF({1,0},Base_tb[№],Base_tb[Price]),2,0),\" \")","v":300},5,{"$f":"[Цена]*[Кол-во]","v":1500}]
["218",{"$f":"IFERROR(VLOOKUP(Реестр_tb[[#This Row],[№]],IF({1,0},Base_tb[№],Base_tb[Name]),2,0),\" \")","v":"конфеты шоколадные алмонд"},{"$f":"IFERROR(VLOOKUP(Реестр_tb[[#This Row],[№]],IF({1,0},Base_tb[№],Base_tb[Price]),2,0),\" \")","v":300},3,{"$f":"[Цена]*[Кол-во]","v":900}]
["222",{"$f":"IFERROR(VLOOKUP(Реестр_tb[[#This Row],[№]],IF({1,0},Base_tb[№],Base_tb[Name]),2,0),\" \")","v":"конфеты шоколадные Alfort"},{"$f":"IFERROR(VLOOKUP(Реестр_tb[[#This Row],[№]],IF({1,0},Base_tb[№],Base_tb[Price]),2,0),\" \")","v":300},5,{"$f":"[Цена]*[Кол-во]","v":1500}]
["210",{"$f":"IFERROR(VLOOKUP(Реестр_tb[[#This Row],[№]],IF({1,0},Base_tb[№],Base_tb[Name]),2,0),\" \")","v":"печенье различный"},{"$f":"IFERROR(VLOOKUP(Реестр_tb[[#This Row],[№]],IF({1,0},Base_tb[№],Base_tb[Price]),2,0),\" \")","v":150},5,{"$f":"[Цена]*[Кол-во]","v":750}]
["031",{"$f":"IFERROR(VLOOKUP(Реестр_tb[[#This Row],[№]],IF({1,0},Base_tb[№],Base_tb[Name]),2,0),\" \")","v":"ликёр \"JACK HONEY\" 700мл"},{"$f":"IFERROR(VLOOKUP(Реестр_tb[[#This Row],[№]],IF({1,0},Base_tb[№],Base_tb[Price]),2,0),\" \")","v":2200},5,{"$f":"[Цена]*[Кол-во]","v":11000}]
["Итог",null,null,null,{"$f":"SUBTOTAL(109,[[Сумма ]])","v":65650}]
[null,null,null,null,{"$f":"Реестр_tb[[#Totals],[Сумма ]]*$B$1/100","v":35451}]

{"sheet":"Технический","index":1,"n_rows":425,"n_cols":3,"rows_kept":425,"cut":false,"hidden":true,"merged":[]}
["№","Name","Price_"]
[104,"вино \"AKADAMA\" белое 1800мл",1100]
["003","пиво баночное \"АСАХИ SUPER DRY\" ящик 350мл*24шт",2500]
["004","пиво бутылочное \"АСАХИ SUPER DRY\" ящик 633мл*12шт",2500]
["009","безалкогольное баночное пиво \"АСАХИ DRY ZERO\" ящик 350мл*24шт",3000]
["022","виски \"BLACK NIKKA\" 4л",2200]
["023","виски \"BLACK NIKKA\" 1800мл",1200]
["024","виски \"BLACK NIKKA\" 700мл",550]
["026","виски \"SUNTORY RED\" 1920мл",1300]
["027","виски \"SUNTORY KAKU\" 700мл",1100]
["028","виски \"JOHNNIE WALKER BLACK\" 700мл",2400]
["029","виски \"JOHNNIE WALKER RED\" 700мл",1200]
["030","виски \"JACK DANIEL'S\" 700мл",2200]
["031","ликёр \"JACK HONEY\" 700мл",2200]
["032","виски \"CHIVAS REGAL 12years\" 700мл",2500]
["033","виски \"CHIVAS REGAL 18years\" 700мл",6000]
["035","виски \"JAMESON\" 700мл",2000]
["036","виски \"TORYS CLASSIC\" 4л",4000]
["037","виски \"NIKKA SAMURAI\" 750мл",5000]
["038","виски \"JIM BEAM\" 700мл",1200]
["039","ликёр \"JIM BEAM APPLE\" 700мл",1200]
["040","ликёр \"JIM BEAM HONEY\" 700мл",2000]
["041","виски \"Ballantine's 12years\" 700мл",0]
["042","текила \"SAUZA GOLD\" 750мл",1700]
["043","текила \"SAUZA SILVER\" 750мл",1700]
["044","текила \"OLMECA GOLD\" 750мл",2200]
["045","текила \"OLMECA SILVER\" 750мл",2200]
["046","бренди \"SUNTORY VO\" 640мл",600]
["050","коньяк \"HENNESSY VS\" с коробки 700мл",3000]
["052","коньяк \"HENNESSY VSOP\" 700мл",7000]
["053","коньяк \"CAMUS VSOP\" 700мл",0]
["054","бренди \"METAXA 5star\" 700мл",1400]
["055","бренди \"METAXA 7star\" 700мл",1800]
["056","бренди \"METAXA 12star\" 700мл",3500]
["058","коньяк \"REMY MARTIN VSOP\" 700мл",0]
["059","коньяк \"SAINT VIVANT VSOP\" 700мл",0]
["060","коньяк \"COURVOISIER VSOP\" 700мл",3000]
["062","ликёр \"MOZART CHOCOLATE\" 500мл",1600]
["063","коньяк \"CALVADOS XO\" 700мл",4500]
["064","водка \"ICE\" 500мл",550]
["066","водка \"SUNTORY\" 720мл",600]
["068","бабайка тетра пак 1.8л",1200]
["069","бабайка стеклянная бутылочка 1.8л",1600]
["070","водка \"STOLICHNAYA\" 500мл",900]
["072","водка \"SKY\" 700мл",1200]
["074","водка \"SPIRYTUS\" 500мл",1700]
["075","водка \"ABSOLUT\" 750мл",1200]
["078","джин \"BEEFEATER 40\" 700мл",1100]
["080","ликёр \"BAILEYS\" 700мл",1500]
["081","ликёр \"SHERIDAN'S\" 500мл",1800]
["082","ликёр \"Jagermeister\" 500мл",1500]
["084","ликёр \"KAHLUA\" 700мл",1300]
["085","ликёр \"DISARONNO\" 700мл",1800]
["086","ром \"BACARDI SUPERIOR\" 750мл",1300]
["087","ром \"BACARDI MOJITO\" 700мл",1200]
["088","ром \"BACARDI GOLD\" 750мл",1300]
["089","ром \"BACARDI BLACK\" 750мл",1500]
["091","вино \"CARLO ROSSI\" красное 3л",1800]
["092","вино \"CARLO ROSSI\" белое 3л",1800]
["093","вино \"CARLO ROSSI\" розовое 3л",1800]
["094","вино \"CARLO ROSSI\" мускат красное 750мл",600]
["095","вино \"CARLO ROSSI\" белое 750мл",550]
["096","вино \"CARLO ROSSI\" розовое 750мл",550]
["098","вино \"POLYPHENOL\" красное 1800мл",900]
["099","вино \"POLYPHENOL\" белое 1800мл",900]
["102","вино \"AKADAMA\" красное 550мл",500]
["103","вино \"AKADAMA\" белое 550мл",500]
["105","вино со сливами стеклянная бутылочка 750ml",1100]
["106","вино \"OTARU\" белое 720мл",1200]
["107","вино \"OTARU\" белое сухое 720мл",1200]
["108","вино \"HAKODATE\" клубничное 720мл",1100]
["109","вино \"HATSU SHIBORI\" белое 720мл",1200]
["111","вино \"NIKKA APPLE\" яблочное 720мл",1000]
["113","вино грузинское \"PIROSMANI\" коричневое 750мл",1800]
["117","вино \"MOЁT & CHANDON\" белое 750мл",0]
["119","вино \"JACOB'S CREEK MOSCATO\" 750мл",1300]
["120","японское саке \"KITA NO KATSU\" стеклянная бутылочка 1800ml",1500]
["121","японское саке \"KITA NO KATSU\" тетра пак 1800ml",1400]
["123","виски \"SUNTORY RESERVE\" 750мл",2000]
["125","бренди \"METAXA GRANDE FINE\" 700мл",0]
["128","вино со сливами тетра пак 2л",800]
["129","вино \"OTARU\" красное 720мл",1100]
["130","вино \"HATSU SHIBORI\" розовое 720мл",1200]
["133","вино грузинское \"SAPERAVI\" синее 750мл",2000]
["134","вино грузинское \"KVARELI\" жёлтое 750мл",2000]
["136","вино \"JACOB'S CREEK BRUT\" 750мл",1400]
["201","мороженое различный",150]
["202","мороженое ваниль 2л",850]
["203","мороженое шоколаднованильный 2л",850]
["204-F","жвачка квадратный FELIX",550]
["204-K","жвачка квадратный КокаКола",550]
["204-M","жвачка квадратный MARIO",550]
["205-A","жвачка круглый Апельсиновый",650]
["205-B","жвачка круглый Виноградный",650]
["205-K","жвачка круглый Клубничный",650]
["206","жвачка гранулированная",750]
["208","конфеты леденцы различный",150]
["209","конфеты карамель различный",150]
["210","печенье различный",150]
["212","плитка шоколада meiji коричневый",120]
["213","плитка шоколада meiji чёрный",120]
["214","плитка шоколада meiji белый",120]
["215","плитка шоколада meiji клубничный",150]
["216","плитка шоколада meiji красный",120]
["217","конфеты шоколадные различный",300]
["218","конфеты шоколадные алмонд",300]
["219","конфеты шоколадные KITKAT",300]
["220","конфеты шоколадные SYLVEINE",300]
["221","конфеты шоколадные CHOCO PIE",300]
["222","конфеты шоколадные Alfort",300]
["224","плитка шоколада 2кг для приготовления",3200]
["226","плитка шоколада молочный большой 342г",700]
["227","конфеты шоколадные с изюмом 1.5кг",3000]
["228","конфеты шоколадные миндальные 1.36кг",3000]
["229","трюфельный шоколад 500г",1200]
["230","шоколадный сироп HERSHEY'S 623г",1300]
["231","смесь орехов 360г",700]
["232","сок бутылочный Кока-Кола 1.5л шт",250]
["233","сок баночный Кока-Кола 250мл*30шт ящик",2200]
["234","сок бутылочный Фанта виноградный 1.5л шт",250]
["235","сок DEKAVITA C 24бyт ящик",1700]
["235-P","сок DEKAVITA C 6бyт пачка",500]
["236","сок бутылочный апельсиновый 1.5л шт",250]
["237","сок бутылочный виноградный 1.5л шт",250]
["238","сок бутылочный яблочный 1.5л шт",250]
["240","вода минеральная 2л*6бyт ящик",500]
["241","вода минеральная 500мл*24бyт ящик",1500]
["242","газированная вода 500мл*24бyт ящик",2000]
["245","чай зелёный 500мл*24бyт ящик",2000]
["246","чай зелёный жиросжигающий 500мл*24бyт ящик",4200]
["247","сок баночный яблочный 185мл*30бан ящик",1300]
["249","сок баночный апельсиновый 185мл*30бан ящик",1300]
["250","сок баночный различный 2вида 185мл*30бан ящик",1500]
["251","сок 100% баночный виноградный 190мл*30бан ящик",1800]
["252","сок 100% баночный яблочный 190мл*30бан ящик",1800]
["253","сок 100% баночный фруктовый 190мл*30бан ящик",1800]
["254","сок 100% баночный апельсиновый 190мл*30бан ящик",1800]
["255","сок витамин C 50бyт ящик",3800]
["256","сок витамин C 10бyт пачка",800]
["257","сок бутылочный C.C.Lemon 1.5л шт",250]
["260","сок бутылочный Vitamin Water 2л шт",250]
["261","сок томатный бутылочный 720мл шт",300]
["262","сок овощной бутылочный 720мл шт",300]
["263","растворимый кофе NESCAFE Excella 200г",1200]
["266-3","фильтр-кофе Blendy зелёный 8шт",250]
["268-B","фильтр-кофе Blendy белый 100шт",2800]
["268-C","фильтр-кофе Blendy синий 100шт",2800]
["268-K","фильтр-кофе Blendy красный 100шт",2800]
["268-X","фильтр-кофе Blendy коричневый 100шт",3000]
["269","фильтр-кофе Blendy различный 100шт",3000]
["270","кофе NESCAFE PRESIDENT 65г",1200]
["271","кофейные зёрна 500г",1000]
["272","молотый кофе UCC GOLDSPECIAL 280г",600]
["273","растворимый кофе MAXIM пакет 120г шт",550]
["275","растворимый кофе MAXIM пакет 120г*12шт ящик",6600]
["276","чай зелёный пакетик 50шт",500]
["277","чай зелёный заварной 150г",500]
["278","чай из коричневого риса заварной 200г",500]
["279","чай из коричневого риса пакетик 50шт",500]
["283","чай Lipton пакетик 100шт",500]
["284","чай Lipton Yellow Label пакетик 50шт",500]
["285","имбирный чай с лимоном пакетик 20шт",500]
["287","какао 300г",400]
["288","чистое 100% какао 110г",400]
["291","сок томатный баночный 20бан ящик",1500]
["292","сок овощной баночный 20бан ящик",1500]
["293","сок бутылочный Welch's виноградный 800мл шт",400]
["294","сок бутылочный Welch's грейпфрутовый 800мл шт",400]
["296","острые закуски KAKINOTANE 190г",300]
["297","шоколадный крем nutella",1600]
["299","чай с лимоном порошковый пакетик 470г",500]
["300","матча (порошковый зелёный чай) с молоком 200г",500]
["301","чай TWININGS различный 20шт",500]
["304","орехи кешью без солью 1.13кг",3000]
["305","смесь орехов 1.13кг",3200]
["306","фисташки 1.36кг",3200]
["310","сыр нарезанный",350]
["311","шоколад LINDOR 600г",3000]
["312","растворимый кофе синий пакет 120г шт",550]
["312-B","растворимый кофе синий пакет 120г ящик",6600]
["314","чай с молоком порошковый 280г",600]
["315","арахис 500г",400]
["324","шоколад с вином Port Wine",350]
["327","сок 100% баночный различный 5вида 190мл*30бан ящик",2000]
["328","печенье с изюмом с кремом RAISINNE",350]
["329","сок 100% баночный ананасовый 190мл*30бан ящик",1800]
["333","кукса жёлтая CURRY 20шт ящик",3500]
["401","куриные окорочка 13.6кг ящик",8800]
["403","куриные целая 1кг",800]
["404","куриные крылышки 2кг",1500]
["405","куриные голень 2кг",1200]
["406","куриные грудки 2кг",1200]
["407","куриное бедро 2кг",1500]
["408","куриные сердца 2кг",2000]
["409","куриные печень 2кг",1000]
["410","куриные желудок 2кг",2000]
["413","жареная курица 1кг",1000]
["414","утиное целая 1.8кг",2000]
["417","шея свиные 2.5кг",2200]
["420","рёбрышки свиные 1кг",1500]
["421","бекон 4.6кг",7500]
["422","бекон 2.3кг",3800]
["423","кость свиные 10кг",2000]
["424","ножки свиные",300]
["425","рёбрышки бараньи 1кг",5000]
["426","баранина 2.5кг",6000]
["427","баранина 5кг",12000]
["428","бедро говяжье 7кг блок",14000]
["430","бедро говяжье 2кг блок",4000]
["431","говяжья печень 2кг",1500]
["433","сосиски винер 1кг",1200]
["435","сосиски с костями 50г*10шт",1300]
["436","колбаса толстая 550г",1500]
["437","фарш свиной 1кг",1000]
["438","фарш говяжий 1кг",1400]
["439","приправленная свинина 350г",600]
["441","помидоры 4кг ящик",0]
["443","картошка 10кг ящик",0]
["444","огурцы 5кг ящик",0]
["445","морковка 10кг ящик",0]
["447","лук репчатый 20кг ящик",0]
["448","лук репчатый10кг ящик",0]
["450","лук зелёный тонкий",0]
["451","чеснок зелёный",0]
["452","лук зелёный порей",0]
["453","капуста 10кг ящик",0]
["454","капуста шт",0]
["455","китайская капуста 4шт ящик",0]
["456","китайская капуста шт",0]
["457","петрушка",0]
["458","капуста айсберг",0]
["460","дайкон 10кг ящик",0]
["461","дайкон шт",0]
["462","паприка",0]
["463","перец зелёный пач",0]
["466","баклажан 5шт пач",0]
["467","грибы различный",0]
["469","мандарины 10кг ящик",0]
["470","мандарины 5кг ящик",0]
["471","груши 10кг ящик",0]
["472","яблоки зелёные 10кг ящик",0]
["473","яблоки красные 10кг ящик",0]
["474","апельсины 16кг ящик",0]
["475","бананы 12.5кг ящик",0]
["476","киви 3кг ящик",0]
["477","ананасы 8шт ящик",0]
["478","винограды 5кг ящик",0]
["479","лимон",0]
["480","клубники 4пач ящик",0]
["481","чеснок 1кг",0]
["482","арбуз",0]
["485","кимча 300г",400]
["486","хурма 7.5кг ящик",0]
["489","сосиски GIANT COO 1кг",1800]
["508","запасное лезвие для бритвы Gillette 8шт",3800]
["510","салфетка 5шт пачка",400]
["510-B","салфетка 12пач ящик",4800]
["511","туалетная бумага с ароматом 2- х*12рулонов пачка",400]
["511-B","туалетная бумага с ароматом 8пачка ящик",3200]
["512-T","одноразовый подгузник SS 0~5кг липучках",1800]
["513-T","одноразовый подгузник S 4~8кг липучках",1800]
["514-P","одноразовый подгузник M 6~11кг трусики",1800]
["514-T","одноразовый подгузник M 6~11кг липучках",1800]
["515-P","одноразовый подгузник L 9~14кг трусики",1800]
["516-P","одноразовый подгузник BIG 12~22кг трусики",1800]
["517-P","одноразовый подгузник BIGBIG 15~28кг трусики",1800]
["518","порошок стиральный 3.2кг",1300]
["519","средство для мытья посуды 600мл",150]
["520","средство для мытья посуды 4л",800]
["521","моющее средство для удаления масляных пятен на кухне 400мл",400]
["525","кусковое мыло",150]
["526","мусорный пакетик 70л 10шт",500]
["527","мусорный пакетик 45л 50шт",500]
["528","портативный газовый баллончик 3шт/пачка",500]
["529","портативная газовая плита",3000]
["533","термопот 5л 220v ZOJIRUSHI CDLCQ50H",15000]
["534","термопот 3л 220v ZOJIRUSHI CDJTS30TL",17000]
["535","корм для кошек 2кг",800]
["536","наполнитель для кошачьего туалетов песок 8л",600]
["537","корм для собак 8кг",1300]
["538","туалетные листы для собак 120шт",1300]
["542","смягчитель для белья 2.5л",600]
["543","бритвы Gillette и запасное 13шт",5000]
["545","зубочистки",200]
["546","зубная паста",300]
["548","губка для мытья посуды",150]
["549","металлическая щётка для мытья посуды",250]
["550","бумага кухонная",300]
["551","шампунь SHISEIDO TSUBAKI бут",1000]
["551-P","шампунь SHISEIDO TSUBAKI пакет",800]
["552","кондиционер SHISEIDO TSUBAKI бут",1000]
["552-P","кондиционер SHISEIDO TSUBAKI пакет",800]
["553","ароматный смягчитель для белья чёрный",400]
["554","ароматный смягчитель для белья синий",400]
["555","ароматный смягчитель для белья красный",400]
["556","ароматный смягчитель для белья белый",400]
["557","ароматный смягчитель для белья розовый",400]
["558","акула таблеток SQUALENE ORIHIRO",2500]
["559","детские витамины",2000]
["560","фольга 25cm*15m",200]
["561","пищевая плёнка 30cm*50m",500]
["563","отбеливатель для одежды 1.5л",300]
["564","отбеливатель для кухни 600мл",200]
["566","амино-коллаген meiji",2500]
["566-P","амино-коллаген премиум meiji",4500]
["567","аромат гранулированные различный",800]
["602","суши 48шт большие",5500]
["603","суши 22шт маленькие",3500]
["604","маринованный имбирь для суши (гари) 1кг",700]
["605","яйцо 10кг ящик",3200]
["606","яйцо 5кг ящик",1800]
["607","молоко длительного хранения 3.6% 1л шт",300]
["608","молоко длительного хранения 3.6% 1л ящик",3300]
["613","йогурт без сахара 400г",200]
["614","йогурт фруктовый 75г*4шт",250]
["615","кефир 900мл",300]
["616","масло сливочное бутербродов (маргарин) 300г шт",300]
["617","масло сливочное бутербродов (маргарин) 24шт ящик",6500]
["618","масло сливочное жёлтое 200г",500]
["619","сгущенное молоко в тюбике 480г",500]
["621","сухое молоко 1кг",1700]
["622","сливки сухие Brite 400г пакетик",400]
["626","замороженные жареные креветки 10шт/пач",500]
["627","варенье клубничное 780г",600]
["628","варенье черничное 780г",600]
["629","варенье апельсиновое 780г",600]
["630","мёд 1кг",600]
["631","кукса синяя SEAFOOD 20шт ящик",3500]
["632","кукса красная ORIGINAL 20шт ящик",3500]
["634","кукса два вида красная/синяя 20шт ящик",3600]
["637-C","мюсли шоколадные 600г",800]
["637-K","мюсли красные 750г",800]
["639","рис 10кг",3600]
["640","рис 5кг",1800]
["641","соль поваренная 5кг",600]
["643","соевый соус kikkoman 1.8л",600]
["644","соевый соус habomai 1л",500]
["645","соевый соус (для супа) habomai 1л",600]
["646","растительное масло 16л",7500]
["647","растительное масло 8л",4500]
["648","растительное масло 1л",600]
["649","оливковое масло 1л",1000]
["650","кунжутное масло 130г",300]
["651","табаско красное",250]
["652","растворимый суп мисо три вида",150]
["653","кукурузный суп 8шт",400]
["654","мука 15кг ящик",3750]
["655","мука 1кг шт",250]
["656","макароны спиральки 4кг",1800]
["659","дрожжи 500г",1300]
["661","спагетти 1кг",300]
["663","сухари панировочные 310г",250]
["664","сахар гранулированный 1кг",250]
["666","кимчи бейс 450г",500]
["667","кимчи бейс 620г",700]
["668","кимчи бейс 1.8л",1000]
["669","томаты консервированные 400г",150]
["670","томатная паста 850г",800]
["671","соус кунжутный 1л",800]
["672","соус хреновый 1л",800]
["673","соус цезарь 1л",800]
["674","соус соевый китайский 1л",800]
["675","соус thousand island dressing 1л",800]
["676","соль-перец мелкий (шт)",200]
["677","соль-перец крупный (10шт/ящ)",2000]
["678","соль-перец крупный (шт)",200]
["679","соль-перец мелкий (10шт/ящ)",2000]
["680","чёрный перец крупный GABAN 420г",1500]
["681","белый перец молотый HOUSE 420г",1500]
["682","красный перец молотый GABAN 300г",1500]
["683","чеснок сушёный молотый GABAN 400г",1500]
["684","лавровый лист S&B 100г",700]
["685","соус бульдог BullDog 500г",300]
["686","майонез 1кг",500]
["687","кетчуп 760г",300]
["689","приправа Ажиномото пакетик 1кг",900]
["691","горчица в тюбике 300г",500]
["693","хрен в тюбике 310г",600]
["695","имбирь в тюбике 270г",500]
["697","чеснок в тюбике 290г",500]
["698","хрен молоты 300г",500]
["699","горчица молоты 300г",400]
["701","лиммонная кислота (жидкая) 100% 720мл",1000]
["702","консервы мандарины дольками",250]
["703","консервы персики дольками",250]
["704","консервы ананасы дольками",250]
["705","уксус яблочный 500мл",400]
["706","соус якинику",450]
["707","соус сукияки",400]
["708","чили соус",400]
["709","приправа китайская SHANTAN",1000]
["710","приправа для риса различный",150]
["711","соус ореховый 1л",800]
["712","кукса зелёная CHILI-TOMATO 20шт ящик",3500]
["713","соус тартар 1л",900]
["714","хлеб нарезанный маленький",150]
["718","майонез низкокалорийный 310г",350]
["719","соус бульдог BullDog 1.8л",650]
["720","табаско зелёное",250]
["721","петрушка сушёная GABAN 80г",850]
["722","кукса 4 вида по 5шт ящик (20шт)",3600]
["723","соус терияки",300]
["724","сыр камамбер 100г",500]
["725","сыр сливочный 200г",500]
["731","чай с яблочном порошковый пакетик 470г",500]
["800","конфеты шоколадные с клубникой 400г",2500]
["803","плитка шоколада LOTTE хрустящий",150]
["804","жевательный мармелад фруктовый 85г",150]
["805","жевательный мармелад сока 85г",150]
["806","жевательный мармелад виноградный 105г",250]
["807","чипсы вкус пиццы",150]
["809","колбаса пальчиковая 50шт",600]
["810","растворимый кофе Blendy stick сладкое 30шт",600]
["811","растворимый кофе Blendy stick полусладкое 30шт",600]
["812","растворимый кофе Blendy stick не сладкое 30шт",600]
["813","конфеты шоколадные CAPLICO ассорти 10шт",300]
["820","конфеты шоколадные TIROL CHOCO 27шт",350]
["821","конфеты шоколадные KAKINOTANE",300]
["822","конфеты HI-CHEW",200]
["823","конфеты лед",200]
["824","чай зелёный премиум пакетик 20шт",400]
["825","соус бэзил и сыр 1л",900]
["826","сосиски простой 730г",1200]
["827","сосиски чёрного перца 730г",1200]
["828","сосиски лимонного петрушки 730г",1200]

{"sheet":"Прайс","index":2,"n_rows":425,"n_cols":3,"rows_kept":425,"cut":false,"hidden":false,"merged":[]}
["№","Name","Price"]
["003","пиво баночное \"АСАХИ SUPER DRY\" ящик 350мл*24шт",2500]
["004","пиво бутылочное \"АСАХИ SUPER DRY\" ящик 633мл*12шт",2500]
["009","безалкогольное баночное пиво \"АСАХИ DRY ZERO\" ящик 350мл*24шт",3000]
["022","виски \"BLACK NIKKA\" 4л",2200]
["023","виски \"BLACK NIKKA\" 1800мл",1200]
["024","виски \"BLACK NIKKA\" 700мл",550]
["037","виски \"NIKKA SAMURAI\" 750мл",5000]
["036","виски \"TORYS CLASSIC\" 4л",4000]
["026","виски \"SUNTORY RED\" 1920мл",1300]
["027","виски \"SUNTORY KAKU\" 700мл",1100]
["028","виски \"JOHNNIE WALKER BLACK\" 700мл",2400]
["029","виски \"JOHNNIE WALKER RED\" 700мл",1200]
["032","виски \"CHIVAS REGAL 12years\" 700мл",2500]
["033","виски \"CHIVAS REGAL 18years\" 700мл",6000]
["035","виски \"JAMESON\" 700мл",2000]
["041","виски \"Ballantine's 12years\" 700мл",0]
["123","виски \"SUNTORY RESERVE\" 750мл",2000]
["030","виски \"JACK DANIEL'S\" 700мл",2200]
["038","виски \"JIM BEAM\" 700мл",1200]
["039","ликёр \"JIM BEAM APPLE\" 700мл",1200]
["040","ликёр \"JIM BEAM HONEY\" 700мл",2000]
["031","ликёр \"JACK HONEY\" 700мл",2200]
["062","ликёр \"MOZART CHOCOLATE\" 500мл",1600]
["080","ликёр \"BAILEYS\" 700мл",1500]
["081","ликёр \"SHERIDAN'S\" 500мл",1800]
["082","ликёр \"Jagermeister\" 500мл",1500]
["084","ликёр \"KAHLUA\" 700мл",1300]
["085","ликёр \"DISARONNO\" 700мл",1800]
["068","бабайка тетра пак 1.8л",1200]
["069","бабайка стеклянная бутылочка 1.8л",1600]
["128","вино со сливами тетра пак 2л",800]
["105","вино со сливами стеклянная бутылочка 750ml",1100]
["111","вино \"NIKKA APPLE\" яблочное 720мл",1000]
["106","вино \"OTARU\" белое 720мл",1200]
["107","вино \"OTARU\" белое сухое 720мл",1200]
["129","вино \"OTARU\" красное 720мл",1100]
["108","вино \"HAKODATE\" клубничное 720мл",1100]
["109","вино \"HATSU SHIBORI\" белое 720мл",1200]
["130","вино \"HATSU SHIBORI\" розовое 720мл",1200]
["091","вино \"CARLO ROSSI\" красное 3л",1800]
["092","вино \"CARLO ROSSI\" белое 3л",1800]
["093","вино \"CARLO ROSSI\" розовое 3л",1800]
["094","вино \"CARLO ROSSI\" мускат красное 750мл",600]
["095","вино \"CARLO ROSSI\" белое 750мл",550]
["096","вино \"CARLO ROSSI\" розовое 750мл",550]
["102","вино \"AKADAMA\" красное 550мл",500]
["103","вино \"AKADAMA\" белое 550мл",500]
[104,"вино \"AKADAMA\" белое 1800мл",1100]
["098","вино \"POLYPHENOL\" красное 1800мл",900]
["099","вино \"POLYPHENOL\" белое 1800мл",900]
["117","вино \"MOЁT & CHANDON\" белое 750мл",0]
["119","вино \"JACOB'S CREEK MOSCATO\" 750мл",1300]
["136","вино \"JACOB'S CREEK BRUT\" 750мл",1400]
["113","вино грузинское \"PIROSMANI\" коричневое 750мл",1800]
["133","вино грузинское \"SAPERAVI\" синее 750мл",2000]
["134","вино грузинское \"KVARELI\" жёлтое 750мл",2000]
["054","бренди \"METAXA 5star\" 700мл",1400]
["055","бренди \"METAXA 7star\" 700мл",1800]
["056","бренди \"METAXA 12star\" 700мл",3500]
["125","бренди \"METAXA GRANDE FINE\" 700мл",0]
["046","бренди \"SUNTORY VO\" 640мл",600]
["063","коньяк \"CALVADOS XO\" 700мл",4500]
["050","коньяк \"HENNESSY VS\" с коробки 700мл",3000]
["052","коньяк \"HENNESSY VSOP\" 700мл",7000]
["053","коньяк \"CAMUS VSOP\" 700мл",0]
["058","коньяк \"REMY MARTIN VSOP\" 700мл",0]
["059","коньяк \"SAINT VIVANT VSOP\" 700мл",0]
["060","коньяк \"COURVOISIER VSOP\" 700мл",3000]
["042","текила \"SAUZA GOLD\" 750мл",1700]
["043","текила \"SAUZA SILVER\" 750мл",1700]
["044","текила \"OLMECA GOLD\" 750мл",2200]
["045","текила \"OLMECA SILVER\" 750мл",2200]
["086","ром \"BACARDI SUPERIOR\" 750мл",1300]
["087","ром \"BACARDI MOJITO\" 700мл",1200]
["088","ром \"BACARDI GOLD\" 750мл",1300]
["089","ром \"BACARDI BLACK\" 750мл",1500]
["078","джин \"BEEFEATER 40\" 700мл",1100]
["064","водка \"ICE\" 500мл",550]
["066","водка \"SUNTORY\" 720мл",600]
["070","водка \"STOLICHNAYA\" 500мл",900]
["072","водка \"SKY\" 700мл",1200]
["074","водка \"SPIRYTUS\" 500мл",1700]
["075","водка \"ABSOLUT\" 750мл",1200]
["120","японское саке \"KITA NO KATSU\" стеклянная бутылочка 1800ml",1500]
["121","японское саке \"KITA NO KATSU\" тетра пак 1800ml",1400]
["235","сок DEKAVITA C 24бyт ящик",1700]
["235-P","сок DEKAVITA C 6бyт пачка",500]
["255","сок витамин C 50бyт ящик",3800]
["256","сок витамин C 10бyт пачка",800]
["233","сок баночный Кока-Кола 250мл*30шт ящик",2200]
["232","сок бутылочный Кока-Кола 1.5л шт",250]
["234","сок бутылочный Фанта виноградный 1.5л шт",250]
["257","сок бутылочный C.C.Lemon 1.5л шт",250]
["260","сок бутылочный Vitamin Water 2л шт",250]
["238","сок бутылочный яблочный 1.5л шт",250]
["236","сок бутылочный апельсиновый 1.5л шт",250]
["237","сок бутылочный виноградный 1.5л шт",250]
["247","сок баночный яблочный 185мл*30бан ящик",1300]
["249","сок баночный апельсиновый 185мл*30бан ящик",1300]
["250","сок баночный различный 2вида 185мл*30бан ящик",1500]
["252","сок 100% баночный яблочный 190мл*30бан ящик",1800]
["254","сок 100% баночный апельсиновый 190мл*30бан ящик",1800]
["251","сок 100% баночный виноградный 190мл*30бан ящик",1800]
["329","сок 100% баночный ананасовый 190мл*30бан ящик",1800]
["253","сок 100% баночный фруктовый 190мл*30бан ящик",1800]
["327","сок 100% баночный различный 5вида 190мл*30бан ящик",2000]
["261","сок томатный бутылочный 720мл шт",300]
["262","сок овощной бутылочный 720мл шт",300]
["291","сок томатный баночный 20бан ящик",1500]
["292","сок овощной баночный 20бан ящик",1500]
["293","сок бутылочный Welch's виноградный 800мл шт",400]
["294","сок бутылочный Welch's грейпфрутовый 800мл шт",400]
["240","вода минеральная 2л*6бyт ящик",500]
["241","вода минеральная 500мл*24бyт ящик",1500]
["242","газированная вода 500мл*24бyт ящик",2000]
["245","чай зелёный 500мл*24бyт ящик",2000]
["246","чай зелёный жиросжигающий 500мл*24бyт ящик",4200]
["300","матча (порошковый зелёный чай) с молоком 200г",500]
["276","чай зелёный пакетик 50шт",500]
["279","чай из коричневого риса пакетик 50шт",500]
["824","чай зелёный премиум пакетик 20шт",400]
["277","чай зелёный заварной 150г",500]
["278","чай из коричневого риса заварной 200г",500]
["301","чай TWININGS различный 20шт",500]
["283","чай Lipton пакетик 100шт",500]
["284","чай Lipton Yellow Label пакетик 50шт",500]
["285","имбирный чай с лимоном пакетик 20шт",500]
["299","чай с лимоном порошковый пакетик 470г",500]
["731","чай с яблочном порошковый пакетик 470г",500]
["314","чай с молоком порошковый 280г",600]
["607","молоко длительного хранения 3.6% 1л шт",300]
["608","молоко длительного хранения 3.6% 1л ящик",3300]
["287","какао 300г",400]
["288","чистое 100% какао 110г",400]
["271","кофейные зёрна 500г",1000]
["272","молотый кофе UCC GOLDSPECIAL 280г",600]
["266-3","фильтр-кофе Blendy зелёный 8шт",250]
["268-B","фильтр-кофе Blendy белый 100шт",2800]
["268-K","фильтр-кофе Blendy красный 100шт",2800]
["268-C","фильтр-кофе Blendy синий 100шт",2800]
["268-X","фильтр-кофе Blendy коричневый 100шт",3000]
["269","фильтр-кофе Blendy различный 100шт",3000]
["810","растворимый кофе Blendy stick сладкое 30шт",600]
["811","растворимый кофе Blendy stick полусладкое 30шт",600]
["812","растворимый кофе Blendy stick не сладкое 30шт",600]
["263","растворимый кофе NESCAFE Excella 200г",1200]
["273","растворимый кофе MAXIM пакет 120г шт",550]
["275","растворимый кофе MAXIM пакет 120г*12шт ящик",6600]
["270","кофе NESCAFE PRESIDENT 65г",1200]
["312","растворимый кофе синий пакет 120г шт",550]
["312-B","растворимый кофе синий пакет 120г ящик",6600]
["204-F","жвачка квадратный FELIX",550]
["204-M","жвачка квадратный MARIO",550]
["204-K","жвачка квадратный КокаКола",550]
["205-K","жвачка круглый Клубничный",650]
["205-B","жвачка круглый Виноградный",650]
["205-A","жвачка круглый Апельсиновый",650]
["206","жвачка гранулированная",750]
["208","конфеты леденцы различный",150]
["209","конфеты карамель различный",150]
["804","жевательный мармелад фруктовый 85г",150]
["805","жевательный мармелад сока 85г",150]
["806","жевательный мармелад виноградный 105г",250]
["822","конфеты HI-CHEW",200]
["823","конфеты лед",200]
["210","печенье различный",150]
["328","печенье с изюмом с кремом RAISINNE",350]
["220","конфеты шоколадные SYLVEINE",300]
["221","конфеты шоколадные CHOCO PIE",300]
["222","конфеты шоколадные Alfort",300]
["813","конфеты шоколадные CAPLICO ассорти 10шт",300]
["219","конфеты шоколадные KITKAT",300]
["218","конфеты шоколадные алмонд",300]
["820","конфеты шоколадные TIROL CHOCO 27шт",350]
["821","конфеты шоколадные KAKINOTANE",300]
["212","плитка шоколада meiji коричневый",120]
["213","плитка шоколада meiji чёрный",120]
["214","плитка шоколада meiji белый",120]
["215","плитка шоколада meiji клубничный",150]
["216","плитка шоколада meiji красный",120]
["803","плитка шоколада LOTTE хрустящий",150]
["226","плитка шоколада молочный большой 342г",700]
["217","конфеты шоколадные различный",300]
["324","шоколад с вином Port Wine",350]
["224","плитка шоколада 2кг для приготовления",3200]
["227","конфеты шоколадные с изюмом 1.5кг",3000]
["228","конфеты шоколадные миндальные 1.36кг",3000]
["229","трюфельный шоколад 500г",1200]
["311","шоколад LINDOR 600г",3000]
["800","конфеты шоколадные с клубникой 400г",2500]
["230","шоколадный сироп HERSHEY'S 623г",1300]
["807","чипсы вкус пиццы",150]
["296","острые закуски KAKINOTANE 190г",300]
["231","смесь орехов 360г",700]
["305","смесь орехов 1.13кг",3200]
["304","орехи кешью без солью 1.13кг",3000]
["306","фисташки 1.36кг",3200]
["315","арахис 500г",400]
["809","колбаса пальчиковая 50шт",600]
["201","мороженое различный",150]
["202","мороженое ваниль 2л",850]
["203","мороженое шоколаднованильный 2л",850]
["626","замороженные жареные креветки 10шт/пач",500]
["605","яйцо 10кг ящик",3200]
["606","яйцо 5кг ящик",1800]
["310","сыр нарезанный",350]
["724","сыр камамбер 100г",500]
["725","сыр сливочный 200г",500]
["613","йогурт без сахара 400г",200]
["614","йогурт фруктовый 75г*4шт",250]
["615","кефир 900мл",300]
["616","масло сливочное бутербродов (маргарин) 300г шт",300]
["617","масло сливочное бутербродов (маргарин) 24шт ящик",6500]
["618","масло сливочное жёлтое 200г",500]
["619","сгущенное молоко в тюбике 480г",500]
["621","сухое молоко 1кг",1700]
["622","сливки сухие Brite 400г пакетик",400]
["632","кукса красная ORIGINAL 20шт ящик",3500]
["631","кукса синяя SEAFOOD 20шт ящик",3500]
["333","кукса жёлтая CURRY 20шт ящик",3500]
["712","кукса зелёная CHILI-TOMATO 20шт ящик",3500]
["634","кукса два вида красная/синяя 20шт ящик",3600]
["722","кукса 4 вида по 5шт ящик (20шт)",3600]
["637-K","мюсли красные 750г",800]
["637-C","мюсли шоколадные 600г",800]
["714","хлеб нарезанный маленький",150]
["654","мука 15кг ящик",3750]
["655","мука 1кг шт",250]
["659","дрожжи 500г",1300]
["663","сухари панировочные 310г",250]
["630","мёд 1кг",600]
["297","шоколадный крем nutella",1600]
["627","варенье клубничное 780г",600]
["628","варенье черничное 780г",600]
["629","варенье апельсиновое 780г",600]
["602","суши 48шт большие",5500]
["603","суши 22шт маленькие",3500]
["604","маринованный имбирь для суши (гари) 1кг",700]
["639","рис 10кг",3600]
["640","рис 5кг",1800]
["656","макароны спиральки 4кг",1800]
["661","спагетти 1кг",300]
["652","растворимый суп мисо три вида",150]
["653","кукурузный суп 8шт",400]
["702","консервы мандарины дольками",250]
["703","консервы персики дольками",250]
["704","консервы ананасы дольками",250]
["664","сахар гранулированный 1кг",250]
["641","соль поваренная 5кг",600]
["689","приправа Ажиномото пакетик 1кг",900]
["643","соевый соус kikkoman 1.8л",600]
["644","соевый соус habomai 1л",500]
["645","соевый соус (для супа) habomai 1л",600]
["666","кимчи бейс 450г",500]
["667","кимчи бейс 620г",700]
["668","кимчи бейс 1.8л",1000]
["708","чили соус",400]
["669","томаты консервированные 400г",150]
["670","томатная паста 850г",800]
["646","растительное масло 16л",7500]
["647","растительное масло 8л",4500]
["648","растительное масло 1л",600]
["649","оливковое масло 1л",1000]
["650","кунжутное масло 130г",300]
["701","лиммонная кислота (жидкая) 100% 720мл",1000]
["705","уксус яблочный 500мл",400]
["651","табаско красное",250]
["720","табаско зелёное",250]
["706","соус якинику",450]
["707","соус сукияки",400]
["723","соус терияки",300]
["678","соль-перец крупный (шт)",200]
["677","соль-перец крупный (10шт/ящ)",2000]
["676","соль-перец мелкий (шт)",200]
["679","соль-перец мелкий (10шт/ящ)",2000]
["685","соус бульдог BullDog 500г",300]
["719","соус бульдог BullDog 1.8л",650]
["686","майонез 1кг",500]
["718","майонез низкокалорийный 310г",350]
["687","кетчуп 760г",300]
["485","кимча 300г",400]
["709","приправа китайская SHANTAN",1000]
["710","приправа для риса различный",150]
["671","соус кунжутный 1л",800]
["672","соус хреновый 1л",800]
["673","соус цезарь 1л",800]
["674","соус соевый китайский 1л",800]
["675","соус thousand island dressing 1л",800]
["711","соус ореховый 1л",800]
["713","соус тартар 1л",900]
["825","соус бэзил и сыр 1л",900]
["680","чёрный перец крупный GABAN 420г",1500]
["682","красный перец молотый GABAN 300г",1500]
["683","чеснок сушёный молотый GABAN 400г",1500]
["721","петрушка сушёная GABAN 80г",850]
["681","белый перец молотый HOUSE 420г",1500]
["684","лавровый лист S&B 100г",700]
["693","хрен в тюбике 310г",600]
["691","горчица в тюбике 300г",500]
["695","имбирь в тюбике 270г",500]
["697","чеснок в тюбике 290г",500]
["698","хрен молоты 300г",500]
["699","горчица молоты 300г",400]
["558","акула таблеток SQUALENE ORIHIRO",2500]
["559","детские витамины",2000]
["566","амино-коллаген meiji",2500]
["566-P","амино-коллаген премиум meiji",4500]
["443","картошка 10кг ящик",0]
["447","лук репчатый 20кг ящик",0]
["448","лук репчатый10кг ящик",0]
["445","морковка 10кг ящик",0]
["441","помидоры 4кг ящик",0]
["444","огурцы 5кг ящик",0]
["460","дайкон 10кг ящик",0]
["461","дайкон шт",0]
["467","грибы различный",0]
["462","паприка",0]
["463","перец зелёный пач",0]
["466","баклажан 5шт пач",0]
["453","капуста 10кг ящик",0]
["454","капуста шт",0]
["458","капуста айсберг",0]
["455","китайская капуста 4шт ящик",0]
["456","китайская капуста шт",0]
["457","петрушка",0]
["452","лук зелёный порей",0]
["450","лук зелёный тонкий",0]
["451","чеснок зелёный",0]
["481","чеснок 1кг",0]
["479","лимон",0]
["482","арбуз",0]
["469","мандарины 10кг ящик",0]
["470","мандарины 5кг ящик",0]
["474","апельсины 16кг ящик",0]
["472","яблоки зелёные 10кг ящик",0]
["473","яблоки красные 10кг ящик",0]
["486","хурма 7.5кг ящик",0]
["471","груши 10кг ящик",0]
["475","бананы 12.5кг ящик",0]
["476","киви 3кг ящик",0]
["477","ананасы 8шт ящик",0]
["478","винограды 5кг ящик",0]
["480","клубники 4пач ящик",0]
["401","куриные окорочка 13.6кг ящик",8800]
["403","куриные целая 1кг",800]
["404","куриные крылышки 2кг",1500]
["405","куриные голень 2кг",1200]
["406","куриные грудки 2кг",1200]
["407","куриное бедро 2кг",1500]
["408","куриные сердца 2кг",2000]
["409","куриные печень 2кг",1000]
["410","куриные желудок 2кг",2000]
["413","жареная курица 1кг",1000]
["426","баранина 2.5кг",6000]
["427","баранина 5кг",12000]
["425","рёбрышки бараньи 1кг",5000]
["420","рёбрышки свиные 1кг",1500]
["417","шея свиные 2.5кг",2200]
["423","кость свиные 10кг",2000]
["424","ножки свиные",300]
["439","приправленная свинина 350г",600]
["437","фарш свиной 1кг",1000]
["438","фарш говяжий 1кг",1400]
["428","бедро говяжье 7кг блок",14000]
["430","бедро говяжье 2кг блок",4000]
["431","говяжья печень 2кг",1500]
["414","утиное целая 1.8кг",2000]
["421","бекон 4.6кг",7500]
["422","бекон 2.3кг",3800]
["436","колбаса толстая 550г",1500]
["435","сосиски с костями 50г*10шт",1300]
["433","сосиски винер 1кг",1200]
["489","сосиски GIANT COO 1кг",1800]
["826","сосиски простой 730г",1200]
["827","сосиски чёрного перца 730г",1200]
["828","сосиски лимонного петрушки 730г",1200]
["510","салфетка 5шт пачка",400]
["510-B","салфетка 12пач ящик",4800]
["511","туалетная бумага с ароматом 2- х*12рулонов пачка",400]
["511-B","туалетная бумага с ароматом 8пачка ящик",3200]
["518","порошок стиральный 3.2кг",1300]
["542","смягчитель для белья 2.5л",600]
["553","ароматный смягчитель для белья чёрный",400]
["554","ароматный смягчитель для белья синий",400]
["555","ароматный смягчитель для белья красный",400]
["556","ароматный смягчитель для белья белый",400]
["557","ароматный смягчитель для белья розовый",400]
["567","аромат гранулированные различный",800]
["563","отбеливатель для одежды 1.5л",300]
["564","отбеливатель для кухни 600мл",200]
["519","средство для мытья посуды 600мл",150]
["520","средство для мытья посуды 4л",800]
["548","губка для мытья посуды",150]
["549","металлическая щётка для мытья посуды",250]
["550","бумага кухонная",300]
["561","пищевая плёнка 30cm*50m",500]
["560","фольга 25cm*15m",200]
["545","зубочистки",200]
["521","моющее средство для удаления масляных пятен на кухне 400мл",400]
["546","зубная паста",300]
["525","кусковое мыло",150]
["551","шампунь SHISEIDO TSUBAKI бут",1000]
["551-P","шампунь SHISEIDO TSUBAKI пакет",800]
["552","кондиционер SHISEIDO TSUBAKI бут",1000]
["552-P","кондиционер SHISEIDO TSUBAKI пакет",800]
["512-T","одноразовый подгузник SS 0~5кг липучках",1800]
["513-T","одноразовый подгузник S 4~8кг липучках",1800]
["514-T","одноразовый подгузник M 6~11кг липучках",1800]
["514-P","одноразовый подгузник M 6~11кг трусики",1800]
["515-P","одноразовый подгузник L 9~14кг трусики",1800]
["516-P","одноразовый подгузник BIG 12~22кг трусики",1800]
["517-P","одноразовый подгузник BIGBIG 15~28кг трусики",1800]
["526","мусорный пакетик 70л 10шт",500]
["527","мусорный пакетик 45л 50шт",500]
["535","корм для кошек 2кг",800]
["536","наполнитель для кошачьего туалетов песок 8л",600]
["537","корм для собак 8кг",1300]
["538","туалетные листы для собак 120шт",1300]
["543","бритвы Gillette и запасное 13шт",5000]
["508","запасное лезвие для бритвы Gillette 8шт",3800]
["529","портативная газовая плита",3000]
["528","портативный газовый баллончик 3шт/пачка",500]
["533","термопот 5л 220v ZOJIRUSHI CDLCQ50H",15000]
["534","термопот 3л 220v ZOJIRUSHI CDJTS30TL",17000]